[Event "Late-Titled-Tuesday-Blitz-December-26-2023"]
[Site "Chess.com"]
[Date "2023.12.26"]
[Round "3"]
[White "youngdinousaur"]
[Black "Camilla_Lee"]
[Result "0-1"]
[WhiteElo "2299"]
[BlackElo "2610"]
[TimeControl "180+1"]
[EndTime "14:28:51 PST"]
[Termination "Camilla_Lee won by resignation"]

1. d4 {[%clk 0:03:00.9]} 1... d5 {[%clk 0:03:00.1]} 2. Nf3 {[%clk 0:03:01.4]}
2... Nf6 {[%clk 0:03:00.2]} 3. Bf4 {[%clk 0:03:02]} 3... Bf5 {[%clk 0:03:00.3]}
4. e3 {[%clk 0:03:02.6]} 4... e6 {[%clk 0:03:00.7]} 5. c4 {[%clk 0:03:03.2]}
5... c6 {[%clk 0:03:01.3]} 6. Qb3 {[%clk 0:03:03.3]} 6... Qb6 {[%clk 0:03:00.9]}
7. c5 {[%clk 0:03:03.9]} 7... Qxb3 {[%clk 0:02:58.7]} 8. axb3 {[%clk 0:03:04.8]}
8... Nbd7 {[%clk 0:02:46.8]} 9. b4 {[%clk 0:03:04.7]} 9... Nh5 {[%clk 0:02:47]}
10. Nc3 {[%clk 0:02:54.9]} 10... Nxf4 {[%clk 0:02:45.8]} 11. exf4 {[%clk
0:02:55.8]} 11... b6 {[%clk 0:02:28.4]} 12. b5 {[%clk 0:02:22.9]} 12... bxc5
{[%clk 0:02:25.6]} 13. bxc6 {[%clk 0:02:22.4]} 13... Nb6 {[%clk 0:02:26.1]} 14.
Nb5 {[%clk 0:02:06]} 14... Kd8 {[%clk 0:02:11.3]} 15. Ne5 {[%clk 0:01:58.3]}
15... Bg6 {[%clk 0:02:11.1]} 16. Rxa7 {[%clk 0:01:23.7]} 16... Rxa7 {[%clk
0:02:09.8]} 17. Nxa7 {[%clk 0:01:24.6]} 17... cxd4 {[%clk 0:02:07.8]} 18. Ba6
{[%clk 0:01:17.4]} 18... f6 {[%clk 0:01:46.2]} 19. Nxg6 {[%clk 0:01:15]} 19...
hxg6 {[%clk 0:01:47.1]} 20. O-O {[%clk 0:01:07.4]} 20... Bd6 {[%clk 0:01:28]}
21. g3 {[%clk 0:01:05.2]} 21... Ke7 {[%clk 0:01:18]} 22. Bd3 {[%clk 0:01:01.4]}
22... e5 {[%clk 0:00:51.9]} 23. fxe5 {[%clk 0:00:58.6]} 23... fxe5 {[%clk
0:00:52.1]} 24. Rc1 {[%clk 0:00:38.1]} 24... e4 {[%clk 0:00:47.3]} 25. Be2
{[%clk 0:00:36.8]} 25... d3 {[%clk 0:00:47.1]} 26. Bg4 {[%clk 0:00:36.7]} 26...
Nc4 {[%clk 0:00:36.4]} 27. b3 {[%clk 0:00:30.4]} 27... Ne5 {[%clk 0:00:36.7]}
28. c7 {[%clk 0:00:16.3]} 28... Nxg4 {[%clk 0:00:09.5]} 29. c8=Q {[%clk
0:00:16.2]} 29... Rxc8 {[%clk 0:00:10.2]} 30. Nxc8+ {[%clk 0:00:16.8]} 30... Kd7
{[%clk 0:00:08.4]} 31. Nxd6 {[%clk 0:00:17.4]} 31... Kxd6 {[%clk 0:00:09.3]} 32.
Kf1 {[%clk 0:00:17]} 32... Nxh2+ {[%clk 0:00:07.4]} 33. Ke1 {[%clk 0:00:16.5]}
33... Nf3+ {[%clk 0:00:07.5]} 34. Kd1 {[%clk 0:00:16.9]} 34... d4 {[%clk
0:00:04.9]} 35. Rc4 {[%clk 0:00:12.7]} 35... Kd5 {[%clk 0:00:05.1]} 36. Rc8
{[%clk 0:00:12]} 36... e3 {[%clk 0:00:05.3]} 37. fxe3 {[%clk 0:00:11.1]} 37...
dxe3 {[%clk 0:00:06.2]} 38. Rd8+ {[%clk 0:00:10.9]} 38... Ke4 {[%clk 0:00:06.6]}
39. Re8+ {[%clk 0:00:11.3]} 39... Kd4 {[%clk 0:00:07.1]} 40. Rd8+ {[%clk
0:00:11.7]} 40... Kc3 {[%clk 0:00:07.7]} 41. Re8 {[%clk 0:00:10.1]} 41... e2+
{[%clk 0:00:05.6]} 42. Rxe2 {[%clk 0:00:10.7]} 42... dxe2+ {[%clk 0:00:06.5]}
43. Kxe2 {[%clk 0:00:11.4]} 43... Ne5 {[%clk 0:00:05.8]} 44. Ke3 {[%clk
0:00:11.7]} 44... Kxb3 {[%clk 0:00:05.8]} 45. Kf4 {[%clk 0:00:12.2]} 45... Nf7
{[%clk 0:00:06.1]} 46. Ke4 {[%clk 0:00:11.4]} 46... Kc4 {[%clk 0:00:06.6]} 47.
g4 {[%clk 0:00:10.7]} 47... Kc5 {[%clk 0:00:07.2]} 48. Kf4 {[%clk 0:00:10.7]}
48... Kd5 {[%clk 0:00:07.6]} 49. g5 {[%clk 0:00:10.7]} 49... Kd4 {[%clk
0:00:08.2]} 0-1

[Event "Late-Titled-Tuesday-Blitz-December-26-2023"]
[Site "Chess.com"]
[Date "2023.12.26"]
[Round "3"]
[White "AljoschaFeuerstack"]
[Black "ShahMatKanal"]
[Result "0-1"]
[WhiteElo "2655"]
[BlackElo "2531"]
[TimeControl "180+1"]
[EndTime "14:28:54 PST"]
[Termination "ShahMatKanal won by checkmate"]

1. e4 {[%clk 0:03:00.9]} 1... b6 {[%clk 0:02:53.4]} 2. d4 {[%clk 0:03:00]} 2...
Bb7 {[%clk 0:02:52.9]} 3. Bd3 {[%clk 0:03:00.4]} 3... e6 {[%clk 0:02:53.1]} 4.
Nf3 {[%clk 0:03:00.4]} 4... d5 {[%clk 0:02:53.4]} 5. exd5 {[%clk 0:02:58.8]}
5... Qxd5 {[%clk 0:02:53]} 6. O-O {[%clk 0:02:50.7]} 6... Nf6 {[%clk 0:02:52.9]}
7. c4 {[%clk 0:02:50.6]} 7... Qh5 {[%clk 0:02:50.6]} 8. d5 {[%clk 0:02:50.5]}
8... Nbd7 {[%clk 0:02:47.1]} 9. Be2 {[%clk 0:02:22.2]} 9... Bd6 {[%clk
0:02:43.1]} 10. h3 {[%clk 0:02:17.9]} 10... O-O-O {[%clk 0:02:38.5]} 11. Ng5
{[%clk 0:02:16.7]} 11... Qh4 {[%clk 0:02:01.4]} 12. Nxf7 {[%clk 0:02:16.3]}
12... exd5 {[%clk 0:01:55.9]} 13. Nxh8 {[%clk 0:02:02.1]} 13... Rxh8 {[%clk
0:01:45.6]} 14. cxd5 {[%clk 0:02:02.2]} 14... Nxd5 {[%clk 0:01:26.1]} 15. Bf3
{[%clk 0:02:00.3]} 15... N7f6 {[%clk 0:01:17.2]} 16. Nc3 {[%clk 0:01:59.3]}
16... Rd8 {[%clk 0:01:09.5]} 17. Nxd5 {[%clk 0:01:55.2]} 17... Nxd5 {[%clk
0:01:02.5]} 18. Bxd5 {[%clk 0:01:28.9]} 18... Bxd5 {[%clk 0:01:00.9]} 19. Qg4+
{[%clk 0:01:29]} 19... Qxg4 {[%clk 0:01:00.3]} 20. hxg4 {[%clk 0:01:29.9]} 20...
Bc4 {[%clk 0:00:45.3]} 21. Bg5 {[%clk 0:01:28.9]} 21... Rf8 {[%clk 0:00:36]} 22.
Rfe1 {[%clk 0:01:27.9]} 22... Rf7 {[%clk 0:00:24.4]} 23. a3 {[%clk 0:01:17]}
23... h6 {[%clk 0:00:23.6]} 24. Be3 {[%clk 0:01:16.6]} 24... a5 {[%clk
0:00:18.6]} 25. Rac1 {[%clk 0:01:16.5]} 25... b5 {[%clk 0:00:17.7]} 26. Bd2
{[%clk 0:01:12.5]} 26... a4 {[%clk 0:00:16.4]} 27. Be3 {[%clk 0:00:58.8]} 27...
Kb7 {[%clk 0:00:15.8]} 28. Bd4 {[%clk 0:00:58.7]} 28... g5 {[%clk 0:00:13.8]}
29. g3 {[%clk 0:00:43.3]} 29... Rh7 {[%clk 0:00:12.9]} 30. Kg2 {[%clk
0:00:40.9]} 30... h5 {[%clk 0:00:12.4]} 31. Rh1 {[%clk 0:00:35.8]} 31... Bd5+
{[%clk 0:00:12.5]} 32. f3 {[%clk 0:00:36.2]} 32... h4 {[%clk 0:00:11.4]} 33.
gxh4 {[%clk 0:00:24.2]} 33... gxh4 {[%clk 0:00:12.3]} 34. Rh3 {[%clk 0:00:22.8]}
34... Rf7 {[%clk 0:00:11]} 35. Bf2 {[%clk 0:00:21.7]} 35... Be5 {[%clk
0:00:08.6]} 36. Rc2 {[%clk 0:00:20.1]} 36... Rg7 {[%clk 0:00:04.8]} 37. Kf1
{[%clk 0:00:19.2]} 37... Bc4+ {[%clk 0:00:04.3]} 38. Kg2 {[%clk 0:00:17.7]}
38... Bd5 {[%clk 0:00:04.3]} 39. Kf1 {[%clk 0:00:16.5]} 39... Bc4+ {[%clk
0:00:04.5]} 40. Ke1 {[%clk 0:00:16.3]} 40... Re7 {[%clk 0:00:03.9]} 41. Kd1
{[%clk 0:00:16.3]} 41... Bf6 {[%clk 0:00:02.4]} 42. Bxh4 {[%clk 0:00:15.9]}
42... Rh7 {[%clk 0:00:01.7]} 43. Rch2 {[%clk 0:00:12.6]} 43... Rd7+ {[%clk
0:00:01.9]} 44. Kc1 {[%clk 0:00:11.9]} 44... Be5 {[%clk 0:00:01.5]} 45. Bg3
{[%clk 0:00:11.3]} 45... Bd4 {[%clk 0:00:01.9]} 46. Rg2 {[%clk 0:00:10.8]} 46...
Be3+ {[%clk 0:00:02.2]} 47. Kc2 {[%clk 0:00:11.3]} 47... Bb3+ {[%clk 0:00:02.7]}
48. Kc3 {[%clk 0:00:11.5]} 48... c5 {[%clk 0:00:02.5]} 49. Bf2 {[%clk
0:00:09.4]} 49... Bd2# {[%clk 0:00:02.1]} 0-1

[Event "Late-Titled-Tuesday-Blitz-December-26-2023"]
[Site "Chess.com"]
[Date "2023.12.26"]
[Round "3"]
[White "Abduzhaparov"]
[Black "SocoLoco"]
[Result "1-0"]
[WhiteElo "2396"]
[BlackElo "2115"]
[TimeControl "180+1"]
[EndTime "14:28:55 PST"]
[Termination "Abduzhaparov won on time"]

1. d4 {[%clk 0:03:00.9]} 1... d5 {[%clk 0:02:59.8]} 2. e4 {[%clk 0:03:00.5]}
2... dxe4 {[%clk 0:02:59.4]} 3. Nc3 {[%clk 0:03:00.6]} 3... Nc6 {[%clk
0:02:59.2]} 4. d5 {[%clk 0:02:58.3]} 4... Ne5 {[%clk 0:02:59.3]} 5. Nxe4 {[%clk
0:02:57.6]} 5... Nf6 {[%clk 0:02:58.9]} 6. Nc3 {[%clk 0:02:54.6]} 6... e6 {[%clk
0:02:52.4]} 7. Bg5 {[%clk 0:02:41.1]} 7... Be7 {[%clk 0:02:46.8]} 8. Qe2 {[%clk
0:02:34.9]} 8... Ng6 {[%clk 0:02:07.8]} 9. dxe6 {[%clk 0:02:27.4]} 9... Bxe6
{[%clk 0:02:03.8]} 10. Qb5+ {[%clk 0:02:18.2]} 10... Qd7 {[%clk 0:01:52.3]} 11.
Qxb7 {[%clk 0:02:08.1]} 11... O-O {[%clk 0:01:52.1]} 12. Rd1 {[%clk 0:02:07.7]}
12... Qe8 {[%clk 0:01:39.1]} 13. Nf3 {[%clk 0:01:45.4]} 13... Rb8 {[%clk
0:01:32.6]} 14. Qxc7 {[%clk 0:01:45]} 14... Rxb2 {[%clk 0:01:30.9]} 15. Bd3
{[%clk 0:01:39.9]} 15... Bd8 {[%clk 0:00:53.1]} 16. Qxa7 {[%clk 0:01:37.2]}
16... Bxa2+ {[%clk 0:00:39.7]} 17. Ne2 {[%clk 0:01:18.4]} 17... h6 {[%clk
0:00:22.5]} 18. Bxf6 {[%clk 0:01:13.7]} 18... Bxf6 {[%clk 0:00:22.3]} 19. O-O
{[%clk 0:01:14.1]} 19... Ne5 {[%clk 0:00:20.5]} 20. Nxe5 {[%clk 0:01:05.6]}
20... Qxe5 {[%clk 0:00:21.4]} 21. Ng3 {[%clk 0:00:59.8]} 21... Re8 {[%clk
0:00:20.7]} 22. Qa4 {[%clk 0:00:31.2]} 22... Bd5 {[%clk 0:00:18.5]} 23. Qg4
{[%clk 0:00:25.7]} 23... Rb7 {[%clk 0:00:14]} 24. Qf5 {[%clk 0:00:19.8]} 24...
Qxf5 {[%clk 0:00:09.4]} 25. Bxf5 {[%clk 0:00:20.7]} 25... Bc4 {[%clk 0:00:08.4]}
26. Bd3 {[%clk 0:00:20.1]} 26... Bxd3 {[%clk 0:00:08.1]} 27. cxd3 {[%clk
0:00:19.8]} 27... Rd7 {[%clk 0:00:08.5]} 28. Ne4 {[%clk 0:00:19.6]} 28... Bd4
{[%clk 0:00:08.3]} 29. g3 {[%clk 0:00:19.4]} 29... Red8 {[%clk 0:00:09]} 30. Kg2
{[%clk 0:00:14.5]} 30... Ba7 {[%clk 0:00:08.9]} 31. Ra1 {[%clk 0:00:12.3]} 31...
Bd4 {[%clk 0:00:07.9]} 32. Ra3 {[%clk 0:00:11.5]} 32... Bb2 {[%clk 0:00:06.2]}
33. Rb3 {[%clk 0:00:11.7]} 33... Bd4 {[%clk 0:00:06]} 34. Rd1 {[%clk 0:00:11.9]}
34... f5 {[%clk 0:00:06.2]} 35. Nd2 {[%clk 0:00:10.9]} 35... Bf6 {[%clk
0:00:05.6]} 36. Nf3 {[%clk 0:00:10.7]} 36... g5 {[%clk 0:00:05.2]} 37. h3 {[%clk
0:00:08.2]} 37... g4 {[%clk 0:00:04.7]} 38. hxg4 {[%clk 0:00:09.1]} 38... fxg4
{[%clk 0:00:05.3]} 39. Nh2 {[%clk 0:00:09]} 39... Kf7 {[%clk 0:00:05]} 40. Nxg4
{[%clk 0:00:08.9]} 40... Bg5 {[%clk 0:00:05.8]} 41. Ne5+ {[%clk 0:00:08.7]}
41... Ke6 {[%clk 0:00:05.8]} 42. Nxd7 {[%clk 0:00:09.6]} 42... Rxd7 {[%clk
0:00:06.5]} 43. Rb6+ {[%clk 0:00:09.3]} 43... Kd5 {[%clk 0:00:06.4]} 44. Rb5+
{[%clk 0:00:08.7]} 44... Kd4 {[%clk 0:00:06.3]} 45. f4 {[%clk 0:00:08.1]} 45...
Be7 {[%clk 0:00:05.6]} 46. Kf3 {[%clk 0:00:08.3]} 46... Bc5 {[%clk 0:00:04.3]}
47. Rc1 {[%clk 0:00:07.2]} 47... Ba7 {[%clk 0:00:01.3]} 48. Rb3 {[%clk
0:00:07.3]} 1-0

[Event "Late-Titled-Tuesday-Blitz-December-26-2023"]
[Site "Chess.com"]
[Date "2023.12.26"]
[Round "3"]
[White "chessajedrezz2020"]
[Black "johnmez"]
[Result "1-0"]
[WhiteElo "2778"]
[BlackElo "2301"]
[TimeControl "180+1"]
[EndTime "14:28:58 PST"]
[Termination "chessajedrezz2020 won by resignation"]

1. Nf3 {[%clk 0:02:59.3]} 1... Nf6 {[%clk 0:02:58.7]} 2. g3 {[%clk 0:02:59]}
2... e6 {[%clk 0:02:59.3]} 3. Bg2 {[%clk 0:02:59.2]} 3... b5 {[%clk 0:02:56.2]}
4. O-O {[%clk 0:02:59]} 4... Bb7 {[%clk 0:02:55.6]} 5. d3 {[%clk 0:02:59.3]}
5... Be7 {[%clk 0:02:55.1]} 6. e4 {[%clk 0:02:59.2]} 6... O-O {[%clk 0:02:54.1]}
7. Qe2 {[%clk 0:02:59]} 7... a6 {[%clk 0:02:52.5]} 8. a4 {[%clk 0:02:55.2]} 8...
b4 {[%clk 0:02:51.7]} 9. e5 {[%clk 0:02:52]} 9... Ne8 {[%clk 0:02:49.5]} 10. a5
{[%clk 0:02:44.1]} 10... d5 {[%clk 0:02:41.2]} 11. exd6 {[%clk 0:02:22.4]} 11...
cxd6 {[%clk 0:02:37]} 12. Nbd2 {[%clk 0:02:20]} 12... Nc6 {[%clk 0:02:33.5]} 13.
Nb3 {[%clk 0:02:12.3]} 13... Nf6 {[%clk 0:02:27.3]} 14. Bd2 {[%clk 0:01:56.8]}
14... Rc8 {[%clk 0:02:24]} 15. Rfc1 {[%clk 0:01:47.8]} 15... Qd7 {[%clk
0:02:14.4]} 16. Qe1 {[%clk 0:01:43.7]} 16... d5 {[%clk 0:02:11.7]} 17. Be3
{[%clk 0:01:35.5]} 17... e5 {[%clk 0:01:57.4]} 18. Nc5 {[%clk 0:01:29.6]} 18...
Bxc5 {[%clk 0:01:53.4]} 19. Bxc5 {[%clk 0:01:29.4]} 19... Rfe8 {[%clk
0:01:54.3]} 20. Nd2 {[%clk 0:01:03.1]} 20... Qf5 {[%clk 0:01:34.5]} 21. Nb3
{[%clk 0:00:52.4]} 21... e4 {[%clk 0:01:28.8]} 22. Qd2 {[%clk 0:00:43]} 22...
Ne5 {[%clk 0:01:25.6]} 23. Qf4 {[%clk 0:00:32.5]} 23... Qxf4 {[%clk 0:01:19.7]}
24. gxf4 {[%clk 0:00:32.4]} 24... Ng6 {[%clk 0:01:20.4]} 25. Be3 {[%clk
0:00:24.5]} 25... Nh5 {[%clk 0:01:10.5]} 26. f5 {[%clk 0:00:18.8]} 26... Ngf4
{[%clk 0:01:10]} 27. Bf1 {[%clk 0:00:10.7]} 27... g6 {[%clk 0:00:52.1]} 28. fxg6
{[%clk 0:00:10]} 28... hxg6 {[%clk 0:00:52.8]} 29. d4 {[%clk 0:00:10.5]} 29...
Ne6 {[%clk 0:00:49.9]} 30. Nc5 {[%clk 0:00:09.5]} 30... Nxc5 {[%clk 0:00:48.4]}
31. dxc5 {[%clk 0:00:10.4]} 31... f5 {[%clk 0:00:48.1]} 32. Rd1 {[%clk
0:00:07.9]} 32... f4 {[%clk 0:00:45.7]} 33. Bd4 {[%clk 0:00:08.2]} 33... Ng7
{[%clk 0:00:42.7]} 34. Ra4 {[%clk 0:00:08]} 34... Ne6 {[%clk 0:00:39.7]} 35.
Rxb4 {[%clk 0:00:07.8]} 35... Rc7 {[%clk 0:00:40]} 36. Be5 {[%clk 0:00:06.2]}
36... Rh7 {[%clk 0:00:38.7]} 37. Bd6 {[%clk 0:00:04.6]} 37... Ng5 {[%clk
0:00:34.5]} 38. Bg2 {[%clk 0:00:03.4]} 38... f3 {[%clk 0:00:31.9]} 39. Bf1
{[%clk 0:00:03.3]} 39... e3 {[%clk 0:00:30.6]} 40. fxe3 {[%clk 0:00:03.1]} 40...
Rxe3 {[%clk 0:00:30.8]} 41. Rg4 {[%clk 0:00:03]} 41... Ne4 {[%clk 0:00:29.7]}
42. Rxg6+ {[%clk 0:00:03.5]} 42... Kf7 {[%clk 0:00:29]} 43. Rg4 {[%clk
0:00:03.5]} 43... f2+ {[%clk 0:00:28.5]} 44. Kg2 {[%clk 0:00:03.6]} 44... d4
{[%clk 0:00:28.9]} 45. Rf4+ {[%clk 0:00:03.1]} 45... Ke6 {[%clk 0:00:28.6]} 46.
Bc4+ {[%clk 0:00:03]} 46... Kd7 {[%clk 0:00:28.9]} 47. Rf7+ {[%clk 0:00:02.2]}
47... Rxf7 {[%clk 0:00:28.5]} 48. Bxf7 {[%clk 0:00:03.1]} 48... Nxd6+ {[%clk
0:00:28.8]} 49. Kxf2 {[%clk 0:00:03.6]} 49... Nxf7 {[%clk 0:00:28.4]} 50. Rxd4+
{[%clk 0:00:03.2]} 50... Ke6 {[%clk 0:00:28]} 51. Kxe3 {[%clk 0:00:03.6]} 51...
Ne5 {[%clk 0:00:28.2]} 52. Rd6+ {[%clk 0:00:04]} 52... Kf5 {[%clk 0:00:28.1]}
53. b3 {[%clk 0:00:04.6]} 53... Ng4+ {[%clk 0:00:27.8]} 54. Kd4 {[%clk
0:00:04.4]} 54... Nxh2 {[%clk 0:00:27.9]} 55. c6 {[%clk 0:00:04.8]} 55... Bc8
{[%clk 0:00:27.8]} 56. c7 {[%clk 0:00:05]} 56... Nf3+ {[%clk 0:00:27.3]} 57. Kc5
{[%clk 0:00:05.6]} 57... Ng5 {[%clk 0:00:25.5]} 58. Rd8 {[%clk 0:00:05]} 58...
Bb7 {[%clk 0:00:25.3]} 59. c8=Q+ {[%clk 0:00:04.4]} 59... Ne6+ {[%clk
0:00:25.8]} 60. Kd6 {[%clk 0:00:03.9]} 1-0

[Event "Late-Titled-Tuesday-Blitz-December-26-2023"]
[Site "Chess.com"]
[Date "2023.12.26"]
[Round "3"]
[White "venturov"]
[Black "kingofthenil"]
[Result "1-0"]
[WhiteElo "2488"]
[BlackElo "2676"]
[TimeControl "180+1"]
[EndTime "14:28:59 PST"]
[Termination "venturov won on time"]

1. Nf3 {[%clk 0:03:00.9]} 1... g6 {[%clk 0:02:58.5]} 2. d4 {[%clk 0:03:00.7]}
2... Bg7 {[%clk 0:02:59.4]} 3. e4 {[%clk 0:02:59]} 3... c6 {[%clk 0:02:55.5]} 4.
h3 {[%clk 0:02:50]} 4... d5 {[%clk 0:02:54]} 5. e5 {[%clk 0:02:50]} 5... f6
{[%clk 0:02:54.5]} 6. exf6 {[%clk 0:02:48.2]} 6... exf6 {[%clk 0:02:55.4]} 7.
Be2 {[%clk 0:02:46.1]} 7... Ne7 {[%clk 0:02:55.3]} 8. O-O {[%clk 0:02:44.7]}
8... O-O {[%clk 0:02:56.2]} 9. c4 {[%clk 0:02:44.8]} 9... dxc4 {[%clk
0:02:53.3]} 10. Bxc4+ {[%clk 0:02:44.6]} 10... Nd5 {[%clk 0:02:54.2]} 11. Re1
{[%clk 0:02:39.3]} 11... Na6 {[%clk 0:02:48]} 12. Nc3 {[%clk 0:02:36.8]} 12...
Nc7 {[%clk 0:02:46.9]} 13. Bf4 {[%clk 0:02:36.1]} 13... Kh8 {[%clk 0:02:34.5]}
14. Bxc7 {[%clk 0:02:28]} 14... Nxc7 {[%clk 0:02:35.4]} 15. d5 {[%clk
0:02:21.7]} 15... cxd5 {[%clk 0:02:33.2]} 16. Nxd5 {[%clk 0:02:22.6]} 16... f5
{[%clk 0:02:20.1]} 17. Nf4 {[%clk 0:01:45.5]} 17... Qf6 {[%clk 0:01:56.2]} 18.
Rc1 {[%clk 0:01:28.8]} 18... Bh6 {[%clk 0:01:44.8]} 19. g3 {[%clk 0:01:05.1]}
19... Bxf4 {[%clk 0:01:40.3]} 20. gxf4 {[%clk 0:01:06]} 20... Be6 {[%clk
0:01:41]} 21. Qb3 {[%clk 0:00:36.1]} 21... Rae8 {[%clk 0:01:35]} 22. Qxb7 {[%clk
0:00:30.3]} 22... Rf7 {[%clk 0:01:26]} 23. Ng5 {[%clk 0:00:25.9]} 23... Bxc4
{[%clk 0:01:12.5]} 24. Nxf7+ {[%clk 0:00:20]} 24... Bxf7 {[%clk 0:01:11.3]} 25.
Qxc7 {[%clk 0:00:14.7]} 25... Kg8 {[%clk 0:00:25.2]} 26. Rxe8+ {[%clk
0:00:13.2]} 26... Bxe8 {[%clk 0:00:26.1]} 27. Qe5 {[%clk 0:00:13.4]} 27... Qd8
{[%clk 0:00:22.5]} 28. Rc7 {[%clk 0:00:09.7]} 28... Bf7 {[%clk 0:00:22.1]} 29.
Qe7 {[%clk 0:00:07.4]} 29... Qd1+ {[%clk 0:00:15.4]} 30. Kh2 {[%clk 0:00:07.2]}
30... Qd5 {[%clk 0:00:14.9]} 31. Rxa7 {[%clk 0:00:06.2]} 31... Qc4 {[%clk
0:00:13.6]} 32. Qxf7+ {[%clk 0:00:06.4]} 32... Qxf7 {[%clk 0:00:12.9]} 33. Rxf7
{[%clk 0:00:07.3]} 33... Kxf7 {[%clk 0:00:13.8]} 34. b4 {[%clk 0:00:07.7]} 34...
Ke6 {[%clk 0:00:14.7]} 35. a4 {[%clk 0:00:08.6]} 35... Kd5 {[%clk 0:00:15.1]}
36. b5 {[%clk 0:00:09.5]} 36... Kc5 {[%clk 0:00:15.3]} 37. Kg3 {[%clk
0:00:10.2]} 37... h6 {[%clk 0:00:15]} 38. h4 {[%clk 0:00:10.7]} 38... Kb6 {[%clk
0:00:14.5]} 39. Kf3 {[%clk 0:00:11.2]} 39... Ka5 {[%clk 0:00:15.4]} 40. Ke3
{[%clk 0:00:11.8]} 40... Kb6 {[%clk 0:00:10.5]} 41. Kd4 {[%clk 0:00:12]} 41...
g5 {[%clk 0:00:08.4]} 42. fxg5 {[%clk 0:00:12.9]} 42... hxg5 {[%clk 0:00:08.2]}
43. hxg5 {[%clk 0:00:13.8]} 43... Kc7 {[%clk 0:00:07.9]} 44. f4 {[%clk
0:00:14.2]} 44... Kb6 {[%clk 0:00:08]} 45. Ke5 {[%clk 0:00:14.2]} 45... Ka5
{[%clk 0:00:08.9]} 46. Kxf5 {[%clk 0:00:15.1]} 46... Kxa4 {[%clk 0:00:09.4]} 47.
g6 {[%clk 0:00:16]} 47... Kxb5 {[%clk 0:00:10.3]} 48. g7 {[%clk 0:00:16.5]}
48... Kc5 {[%clk 0:00:11.2]} 49. g8=Q {[%clk 0:00:17.2]} 49... Kd4 {[%clk
0:00:12.1]} 50. Qe6 {[%clk 0:00:17.9]} 50... Kd3 {[%clk 0:00:12.6]} 51. Kg5
{[%clk 0:00:18.5]} 51... Kd2 {[%clk 0:00:13.5]} 52. f5 {[%clk 0:00:19.4]} 52...
Kd1 {[%clk 0:00:14.3]} 53. f6 {[%clk 0:00:20.3]} 53... Kd2 {[%clk 0:00:15.1]}
54. f7 {[%clk 0:00:21.2]} 1-0

[Event "Late-Titled-Tuesday-Blitz-December-26-2023"]
[Site "Chess.com"]
[Date "2023.12.26"]
[Round "3"]
[White "Grindaveci"]
[Black "Anar_Aliakbarov"]
[Result "1-0"]
[WhiteElo "2374"]
[BlackElo "2519"]
[TimeControl "180+1"]
[EndTime "14:29:02 PST"]
[Termination "Grindaveci won on time"]

1. e4 {[%clk 0:03:00.8]} 1... c5 {[%clk 0:02:58.8]} 2. Nf3 {[%clk 0:03:00.2]}
2... d6 {[%clk 0:02:56.8]} 3. c3 {[%clk 0:03:00]} 3... Nf6 {[%clk 0:02:56.4]} 4.
Be2 {[%clk 0:02:57.9]} 4... Nc6 {[%clk 0:02:55.5]} 5. Qc2 {[%clk 0:02:57.9]}
5... e5 {[%clk 0:02:54.7]} 6. O-O {[%clk 0:02:56.8]} 6... Be7 {[%clk 0:02:55.4]}
7. Rd1 {[%clk 0:02:56.5]} 7... O-O {[%clk 0:02:56.1]} 8. d4 {[%clk 0:02:56.3]}
8... Qc7 {[%clk 0:02:56.9]} 9. Be3 {[%clk 0:02:46.8]} 9... a6 {[%clk 0:02:55.9]}
10. Nbd2 {[%clk 0:02:45.1]} 10... Bg4 {[%clk 0:02:48.8]} 11. h3 {[%clk
0:02:44.1]} 11... Bh5 {[%clk 0:02:49.3]} 12. Nf1 {[%clk 0:02:41]} 12... Rfe8
{[%clk 0:02:39.4]} 13. Ng3 {[%clk 0:02:40]} 13... Bxf3 {[%clk 0:02:35.9]} 14.
Bxf3 {[%clk 0:02:39.4]} 14... Bf8 {[%clk 0:02:33.1]} 15. Rac1 {[%clk 0:02:33.7]}
15... b5 {[%clk 0:02:30.6]} 16. dxc5 {[%clk 0:02:21]} 16... dxc5 {[%clk
0:02:30.2]} 17. Bg5 {[%clk 0:02:21.2]} 17... Nd7 {[%clk 0:02:17.7]} 18. Nf5
{[%clk 0:02:17.4]} 18... Nb6 {[%clk 0:02:11.1]} 19. Qe2 {[%clk 0:02:01.5]} 19...
f6 {[%clk 0:02:10.8]} 20. Be3 {[%clk 0:02:00.1]} 20... Rad8 {[%clk 0:02:08]} 21.
h4 {[%clk 0:01:52.6]} 21... c4 {[%clk 0:02:05.9]} 22. h5 {[%clk 0:01:40.7]}
22... Na4 {[%clk 0:02:05.7]} 23. b3 {[%clk 0:01:34.9]} 23... cxb3 {[%clk
0:01:51.9]} 24. axb3 {[%clk 0:01:34.5]} 24... Nc5 {[%clk 0:01:52.7]} 25. b4
{[%clk 0:01:24.2]} 25... Na4 {[%clk 0:01:38.4]} 26. Bg4 {[%clk 0:01:22.4]} 26...
Rxd1+ {[%clk 0:01:33.8]} 27. Qxd1 {[%clk 0:01:20.8]} 27... Rd8 {[%clk
0:01:19.2]} 28. Qb3+ {[%clk 0:01:18.7]} 28... Kh8 {[%clk 0:01:18.1]} 29. c4
{[%clk 0:01:17]} 29... Qb7 {[%clk 0:01:07.9]} 30. c5 {[%clk 0:01:11.9]} 30... a5
{[%clk 0:01:05.1]} 31. Qe6 {[%clk 0:00:32.2]} 31... axb4 {[%clk 0:01:00.2]} 32.
h6 {[%clk 0:00:32.3]} 32... Nc3 {[%clk 0:00:40.4]} 33. hxg7+ {[%clk 0:00:26.5]}
33... Bxg7 {[%clk 0:00:41.3]} 34. Nxg7 {[%clk 0:00:20.3]} 34... Qxg7 {[%clk
0:00:41.6]} 35. Qxc6 {[%clk 0:00:14.2]} 35... Rg8 {[%clk 0:00:37.8]} 36. Bf3
{[%clk 0:00:13.2]} 36... Ne2+ {[%clk 0:00:38.2]} 37. Kf1 {[%clk 0:00:13]} 37...
Nxc1 {[%clk 0:00:38.7]} 38. Bxc1 {[%clk 0:00:13.1]} 38... Rb8 {[%clk 0:00:33.9]}
39. Qd6 {[%clk 0:00:11.5]} 39... Ra8 {[%clk 0:00:32.2]} 40. c6 {[%clk
0:00:09.6]} 40... b3 {[%clk 0:00:30.3]} 41. c7 {[%clk 0:00:08.7]} 41... Qf8
{[%clk 0:00:13.7]} 42. Qc6 {[%clk 0:00:06.1]} 42... Rc8 {[%clk 0:00:10.7]} 43.
Bg4 {[%clk 0:00:05.2]} 43... Re8 {[%clk 0:00:01.9]} 44. c8=Q {[%clk 0:00:04.4]}
44... Rxc8 {[%clk 0:00:02.6]} 45. Qxc8 {[%clk 0:00:05]} 45... Qxc8 {[%clk
0:00:02.5]} 46. Bxc8 {[%clk 0:00:05.9]} 1-0